Cogmind - Beta 11 X4 --- EXPLORER MODE // 2021.05.04 @ 19:00:59 Player: jfk Result: Self-destructed Performance ------------- Evolutions (1) 500 Regions Visited (5) 1000 Robots Destroyed (3) 15 Value Destroyed (115) 115 Prototype IDs (23) 460 Alien Tech Used (0) 0 Bonus (0) 0 TOTAL SCORE: 2090 Bonus ------- None Cogmind --------- Core Integrity 19/400 Matter 290/300 Energy 100/100 System Corruption 2% Temperature Cool (0) Movement Core (200) Ox3 Location -9/Exiles Parts ------- > --- POWER (1) -------- (None) > --- PROPULSION (3) --- (None) > --- UTILITY (4) ------ (None) > --- WEAPON (2) ------- AWS/Gauss > --- INVENTORY (5) ---- (None) Peak State ------------ > --- POWER ------------ (None) > --- PROPULSION ------- (None) > --- UTILITY ---------- (None) > --- WEAPON ----------- AWS/Gauss > --- INVENTORY -------- (None) [Rating: 16] Favorites ----------- Power None Propulsion Aluminum Leg Leg Aluminum Leg Hover Unit Improved Hover Unit Utility None Weapon Enhanced Flamer Ballistic Gun AWS/Gauss Special Weapon Enhanced Flamer Build | -11 -10 -10 -9 -9 -9 ------- Run | Scr Mat Min Mat Min Exi Slots Evolved 3 | . 1 . 2 . . Power . | . . . . . . Propulsion 1 | . . . 1 . . Utility 2 | . 1 . 1 . . Weapon . | . . . . . . Parts Attached 4 | . . 2 1 . 1 Power . | . . . . . . Engine . | . . . . . . Core . | . . . . . . Reactor . | . . . . . . Propulsion 2 | . . 1 1 . . Treads . | . . . . . . Leg 1 | . . 1 . . . Wheel . | . . . . . . Hover 1 | . . . 1 . . Flight . | . . . . . . Utility . | . . . . . . Device . | . . . . . . Storage . | . . . . . . Processor . | . . . . . . Hackware . | . . . . . . Protection . | . . . . . . Artifact . | . . . . . . Weapon 2 | . . 1 . . 1 Energy Gun . | . . . . . . Energy Cannon . | . . . . . . Ballistic Gun 1 | . . . . . 1 Ballistic Cannon . | . . . . . . Launcher . | . . . . . . Special Weapon 1 | . . 1 . . . Impact Weapon . | . . . . . . Slashing Weapon . | . . . . . . Piercing Weapon . | . . . . . . Special Melee Weapon . | . . . . . . Unidentified Prototypes . | . . . . . . Parts Lost 1 | . . 1 . . . Power . | . . . . . . Propulsion . | . . . . . . Utility . | . . . . . . Weapon 1 | . . 1 . . . Highest Loss Streak 1 | . . 1 . . . Average Slot Usage (%) 4 | . . 8 . . 5 Leg 1 | . . 2 . . . Ballistic Gun 1 | . . . . . 5 Special Weapon 2 | . . 5 . . . Naked Turns 516 | . 35 156 151 89 85 Heaviest Build 10 | . . 2 . . 10 Greatest Support 10 | 3 3 10 3 3 3 Greatest Overweight (x) 3 | . . . . . 3 Average Overweight (x) . | . . . . . . Largest Inventory Capacity 5 | 5 5 5 5 5 5 Average Capacity 5 | 5 5 5 5 5 5 Most Carried . | . . . . . . Average Carried . | . . . . . . Final Capacity 5 | 5 5 5 5 5 5 Final Carried . | . . . . . . Class Distribution -------------------- 100% | Hacker-Mutant Dominant Class ---------------- Hacker-Mutant | -10/Materials Hacker-Mutant | -10/Mines Hacker-Mutant | -9/Materials Hacker-Mutant | -9/Mines Hacker-Mutant | -9/Exiles Resources | -11 -10 -10 -9 -9 -9 ----------- Run | Scr Mat Min Mat Min Exi Matter Collected 203 | 39 . . 102 62 . Remotely . | . . . . . . Salvage Created 88 | . . 44 . . 44 Parts 3 | . . . . . 3 Haulers Intercepted . | . . . . . . Recyclers Shooed . | . . . . . . Parts Field Recycled . | . . . . . . Retrieved Matter . | . . . . . . Parts Self-Destructed . | . . . . . . Prevented . | . . . . . . Kills | -11 -10 -10 -9 -9 -9 ------- Run | Scr Mat Min Mat Min Exi Combat Hostiles Destroyed 3 | . . 2 . . 1 Guns 1 | . . . . . 1 Classes Destroyed 1 | . . 1 . . . Grunt 3 | . . 2 . . 1 Best Kill Streak 2 | . . 2 . . 1 Combat Bots Only 2 | . . 2 . . 1 Max Kills in Single Turn 1 | . . 1 . . 1 Gunslinging . | . . . . . . Exploded . | . . . . . . Melee . | . . . . . . Uniques/NPCs Destroyed . | . . . . . . Combat | -11 -10 -10 -9 -9 -9 -------- Run | Scr Mat Min Mat Min Exi Damage Taken 568 | . . 187 381 . . Core 507 | . . 126 381 . . Absorbed by Shields . | . . . . . . Core Remaining (%) 74 | 100 . 49 . . . Volleys Fired 9 | . . 9 . . . Largest 1 | . . 1 . . . Hottest 80 | . . 80 . . . Shots Fired 10 | . . 9 . . 1 Gun 1 | . . . . . 1 Cannon . | . . . . . . Launcher . | . . . . . . Special 9 | . . 9 . . . Kinetic 1 | . . . . . 1 Thermal 9 | . . 9 . . . Explosive . | . . . . . . Electromagnetic . | . . . . . . Robot Hit Streak 10 | . . 9 . . 10 Robot Miss Streak . | . . . . . . Penetration Max . | . . . . . . Secondary Targets . | . . . . . . Autonomous 1 | . . . . . 1 Shots Hit Robots 10 | . . 9 . . 1 Core Hits 3 | . . 2 . . 1 Critical Kills . | . . . . . . Critical Parts Destroyed . | . . . . . . Critical Strikes . | . . . . . . Melee Attacks . | . . . . . . Impact . | . . . . . . Slashing . | . . . . . . Piercing . | . . . . . . Sneak Attacks . | . . . . . . Combat Hostiles . | . . . . . . Follow-up Attacks . | . . . . . . Damage Inflicted 147 | . . 109 12 . 26 Guns 26 | . . . . . 26 Cannons . | . . . . . . Explosions . | . . . . . . Melee . | . . . . . . Ramming 24 | . . 12 12 . . Kinetic 26 | . . . . . 26 Thermal 97 | . . 97 . . . Explosive . | . . . . . . Electromagnetic . | . . . . . . Impact . | . . . . . . Slashing . | . . . . . . Piercing . | . . . . . . Highest Corruption 2 | . . . 2 2 2 Average Corruption 2 | . . . 2 2 2 Corruption Purged . | . . . . . . Effects 4 | . . . 1 . 3 Message Errors 3 | . . . . . 3 Data Loss (minor) 1 | . . . 1 . . Overload Shots . | . . . . . . Overflow Damage . | . . . . . . Projectiles . | . . . . . . Explosions . | . . . . . . Melee . | . . . . . . Knockbacks . | . . . . . . Impact . | . . . . . . Kinetic . | . . . . . . Secondary . | . . . . . . Self-Inflicted Damage 12 | . . 6 6 . . Shots . | . . . . . . Rammed 5 | . . 4 1 . . Targets Rammed 6 | . . 5 1 . . Kicked 1 | . . 1 . . . Crushed . | . . . . . . Highest Temperature 170 | . . 170 5 . . Average Temperature 76 | . . 78 5 . . Received Heat Transfer 426 | . . 186 240 . . Siege Activations . | . . . . . . Robots Corrupted . | . . . . . . Combat Hostiles . | . . . . . . Parts Fried . | . . . . . . Impact Corruptions . | . . . . . . Robots Melted 2 | . . 2 . . . Combat Hostiles 2 | . . 2 . . . Parts Melted 1 | . . 1 . . . Heat Transferred 720 | . . 720 . . . Parts Sabotaged . | . . . . . . Parts Stolen . | . . . . . . Parts Stripped . | . . . . . . Power Chain Reactions . | . . . . . . Missiles Intercepted . | . . . . . . Alert | -11 -10 -10 -9 -9 -9 ------- Run | Scr Mat Min Mat Min Exi Peak Influence 256 | . . 115 256 70 . Initial 70 | . . . 31 70 . Average 55 | . . 38 97 70 . Maximum Alert Level 1 | . . . 1 . . Low Security (%) 97 | 100 100 100 91 100 . Level 1 2 | . . . 8 . . Level 2 . | . . . . . . Level 3 . | . . . . . . Level 4 . | . . . . . . Level 5 . | . . . . . . High Security . | . . . . . . Max Security . | . . . . . . Squads Dispatched 3 | . . . 3 . . Investigation . | . . . . . . Extermination . | . . . . . . Reinforcement 3 | . . . 3 . . Assault . | . . . . . . Garrison . | . . . . . . Intercept . | . . . . . . Construction Impeded . | . . . . . . Haulers Reinforced . | . . . . . . Cargo Convoy Interrupts . | . . . . . . Stealth | -11 -10 -10 -9 -9 -9 --------- Run | Scr Mat Min Mat Min Exi Distress Signals 1 | . . . 1 . . Communications Jammed . | . . . . . . Distress Signals . | . . . . . . Times Spotted 28 | . . 6 22 . . Peak Tracking Total 12 | . . 3 12 . . Tactical Retreats 5 | . . 2 3 . . Traps | -11 -10 -10 -9 -9 -9 ------- Run | Scr Mat Min Mat Min Exi Traps Triggered 1 | . . . 1 . . Indirectly . | . . . . . . Trap Hack Attempts . | . . . . . . Triggered . | . . . . . . Disarmed . | . . . . . . Reprogrammed . | . . . . . . Reused . | . . . . . . Traps Extracted . | . . . . . . Installed . | . . . . . . Triggered . | . . . . . . Machines | -11 -10 -10 -9 -9 -9 ---------- Run | Scr Mat Min Mat Min Exi Machines Disabled . | . . . . . . Max in Single Turn . | . . . . . . Machines Sabotaged . | . . . . . . Garrisons Compromised . | . . . . . . Overloaded Fab Kills . | . . . . . . Fab Network Shutdowns . | . . . . . . Hacking | -11 -10 -10 -9 -9 -9 --------- Run | Scr Mat Min Mat Min Exi Machines Accessed 1 | . . . . . 1 Terminals . | . . . . . . Fabricators . | . . . . . . Repair Stations . | . . . . . . Recycling Units . | . . . . . . Scanalyzers . | . . . . . . Garrison Access . | . . . . . . Total Hacks 1 | . . . . . 1 Successful 1 | . . . . . 1 Failed . | . . . . . . Catastrophic . | . . . . . . Database Lockouts . | . . . . . . Manual 2 | . . . . . 2 Terminals . | . . . . . . Fabricators . | . . . . . . Repair Stations . | . . . . . . Recycling Units . | . . . . . . Scanalyzers . | . . . . . . Garrison Access . | . . . . . . Terminal Hacks 1 | . . . . . 1 EX-Prototype ID Bank 1 | . . . . . 1 Fabricator Hacks . | . . . . . . Repair Station Hacks . | . . . . . . Recycling Unit Hacks . | . . . . . . Scanalyzer . | . . . . . . Garrison Access Hacks . | . . . . . . Unauthorized Hacks . | . . . . . . Terminals . | . . . . . . Fabricators . | . . . . . . Repair Stations . | . . . . . . Recycling Units . | . . . . . . Scanalyzers . | . . . . . . Garrison Access . | . . . . . . Data Cores Recovered . | . . . . . . Used . | . . . . . . Hacking Detections . | . . . . . . Full Trace Events . | . . . . . . Feedback Events . | . . . . . . Feedback Blocked . | . . . . . . Robot Schematics Acquired . | . . . . . . Robots Built . | . . . . . . Matter . | . . . . . . Time . | . . . . . . Total Robot Build Rating . | . . . . . . Part Schematics Acquired . | . . . . . . Parts Built . | . . . . . . Matter . | . . . . . . Time . | . . . . . . Total Part Build Rating . | . . . . . . Parts Repaired . | . . . . . . Time . | . . . . . . Parts Recycled . | . . . . . . Recycled Matter . | . . . . . . Retrieved Matter . | . . . . . . Retrieved Components . | . . . . . . Parts Scanalyzed . | . . . . . . Part Schematics Acquired . | . . . . . . Parts Damaged . | . . . . . . Bothacking | -11 -10 -10 -9 -9 -9 ------------ Run | Scr Mat Min Mat Min Exi Used RIF Installer . | . . . . . . Robots Hacked . | . . . . . . Non-combat . | . . . . . . Combat . | . . . . . . Robot Hacks Applied . | . . . . . . Relay Couplers Released . | . . . . . . Robots Rewired 3 | . . . . . 3 Allies Hacked . | . . . . . . Hacks Repelled . | . . . . . . Allies | -11 -10 -10 -9 -9 -9 -------- Run | Scr Mat Min Mat Min Exi Total Allies 3 | . . . . . 3 Largest Group 3 | . . . . . 3 Highest-Rated Group 37 | . . . . . 37 Highest-Rated Ally 21 | . . . . . 21 Total Orders . | . . . . . . Ally Attacks . | . . . . . . Total Damage . | . . . . . . Kills . | . . . . . . Allies Corrupted . | . . . . . . Allies Melted . | . . . . . . Intel | -11 -10 -10 -9 -9 -9 ------- Run | Scr Mat Min Mat Min Exi Robot Analysis Total . | . . . . . . Derelict Logs Recovered . | . . . . . . Drone Launches . | . . . . . . Drone Recoveries . | . . . . . . Exploration | -11 -10 -10 -9 -9 -9 ------------- Run | Scr Mat Min Mat Min Exi Turns Passed 805 | 9 35 322 152 89 198 Spaces Moved 1238 | 18 69 476 293 177 205 Core 1203 | 18 69 441 293 177 205 Treads . | . . . . . . Legs 35 | . . 35 . . . Wheels . | . . . . . . Hover . | . . . . . . Flight . | . . . . . . Fastest Speed 50 | 50 50 50 50 50 50 Average Speed 58 | 50 50 55 50 50 90 Slowest Speed 200 | 50 50 120 50 50 200 Overloaded Moves . | . . . . . . Propulsion Burnouts . | . . . . . . Robots Hopped . | . . . . . . Cave-ins Triggered . | . . . . . . Exploration Rate (%) 40 | 4 22 69 43 46 56 Regions Visited 5 Branch Regions 3 Pre-discovered Areas . | . . . . . . Known Exits Taken 5 | 1 1 1 1 1 . Unknown Exits Taken . | . . . . . . Scrap Searched . | . . . . . . Spaces Dug . | . . . . . . Terrain Destroyed . | . . . . . . Melee . | . . . . . . Projectile . | . . . . . . AOE . | . . . . . . Terrain Rammed . | . . . . . . Walls Destroyed . | . . . . . . Machines Disabled . | . . . . . . Actions | -11 -10 -10 -9 -9 -9 --------- Run | Scr Mat Min Mat Min Exi Total 1292 | 17 68 518 297 176 216 Wait 28 | . . 26 2 . . Move 1233 | 17 68 475 292 176 205 Hop . | . . . . . . Pick Up . | . . . . . . Fast Attach 4 | . . 2 1 . 1 Attach . | . . . . . . Detach . | . . . . . . Swap . | . . . . . . Drop 2 | . . 1 1 . . Fire 9 | . . 9 . . . Melee . | . . . . . . Ram 5 | . . 4 1 . . Kick 1 | . . 1 . . . Crush . | . . . . . . Escape Stasis . | . . . . . . Rewire 10 | . . . . . 10 Trap . | . . . . . . Miscellaneous . | . . . . . . Route ------- -11/Scrapyard -10/Materials -10/Mines (discovered 2 exits: *Mat x2) -9/Materials (discovered 2 exits: *Mat / *Min) -9/Mines (discovered 2 exits: *Exi / [*Zio]) -9/Exiles History --------- Turn | Location | Event 2 | -11/Scrapyard | Identified exit to Materials 2 | -11/Scrapyard | Discovered exit to Materials (range 16) 10 | -11/Scrapyard | Entered Materials 10 | -10/Materials | Evolved 1 slot: Utility x1 37 | -10/Materials | Identified exit to Mines 37 | -10/Materials | Discovered exit to Mines (range 16) 45 | -10/Materials | Entered Mines 56 | -10/Mines | A weapon hastily lodged in a ceiling crevice suddenly fell to the ground 106 | -10/Mines | Identified exit to Materials 106 | -10/Mines | Discovered exit to Materials (range 10) 294 | -10/Mines | Core integrity fell below 50% 301 | -10/Mines | Build established: Hacker-Mutant 332 | -10/Mines | Discovered exit to Materials (range 10) 367 | -10/Mines | Entered Materials 367 | -9/Materials | Evolved 2 slots: Propulsion x1, Utility x1 467 | -9/Materials | Core integrity fell below 50% 475 | -9/Materials | Identified exit to Materials 475 | -9/Materials | Discovered exit to Materials (range 3) 506 | -9/Materials | Core integrity fell below 20% 513 | -9/Materials | Identified exit to Mines 513 | -9/Materials | Discovered exit to Mines (range 12) 519 | -9/Materials | Entered Mines 520 | -9/Mines | A Derelict revealed a hidden shortcut to a safe place 563 | -9/Mines | Met a Derelict bent on vengeance 605 | -9/Mines | Deemed a non-threat by the Exiles lab entrance 606 | -9/Mines | Identified exit to Exiles 606 | -9/Mines | Discovered exit to Exiles (range 5) 608 | -9/Mines | Entered Exiles 608 | -9/Exiles | Found Exiles lab destroyed 690 | -9/Exiles | Opened EX-Vault 693 | -9/Exiles | Found AWS/Gauss 806 | -9/Exiles | Self-destructed Last Messages --------------- Cloak of Protection Skeleton Box Trap Reconfigurator Supersonic Drone Bay Army-in-a-Box PSU Rigger Chronowheel AWS/Thermal Latent Energy Streamer Gui. Plasma Cannon Firepult YOLO Cannon AWS/Gauss XL Autogun Array AWS/Autocannon Field Lobotomy Kit Longsword +1 Deploy-a-Sentry 00693_ Acquired AWS/Gauss. 00715_ 9Q50RTSZXDJOJWU6# EBC8WD